bitfinex-derivatives/quotes_SOLF0:USTF0_20220110
["timestamp","ask_amount","ask_price","bid_price","bid_amount"]
[1641790090681,27.66479,142.78,142.75,2.46052385]
[1641790090979,4.0,142.76,142.75,2.46052385]
[1641790093882,69.2596,142.78,142.75,2.46052385]
[1641790094283,4.0,142.76,142.75,2.46052385]
[1641790094483,69.2596,142.78,142.75,8.06450933]
[1641790094684,68.3719,142.83,142.76,8.74839037]
[1641790094883,70.5364,142.82,142.76,8.74839037]
[1641790095284,4.0,142.79,142.76,8.74839037]
[1641790095482,4.0,142.78,142.77,5.60334006]
[1641790095684,4.0,142.78,142.77,13.62634006]
[1641790095885,4.0,142.78,142.77,16.08686391]
[1641790096984,4.0,142.78,142.77,27.66545899]
[1641790097185,4.0,142.78,142.77,22.06211893]
[1641790097384,4.0,142.78,142.77,20.31111893]
[1641790097585,4.0,142.78,142.77,12.28811893]
[1641790097785,4.0,142.78,142.77,2.46052385]
[1641790097986,7.96897295,142.78,142.77,2.46052385]
[1641790098491,11.96897295,142.78,142.77,2.46052385]
[1641790098688,7.96897295,142.78,142.76,2.45500482]
[1641790099190,3.96897295,142.77,142.76,2.45500482]
[1641790099488,3.96897295,142.77,142.73,39.579814]
[1641790099689,3.96897295,142.77,142.72,46.579919]
[1641790100993,68.6383,142.78,142.73,1.75]
[1641790101192,68.6383,142.78,142.73,8.644]
[1641790101493,4.0,142.74,142.73,8.644]
[1641790101692,4.0,142.74,142.73,48.223814]
[1641790102292,4.0,142.74,142.73,46.473814]
[1641790102494,4.0,142.74,142.73,6.894]
[1641790102792,4.0,142.76,142.73,6.894]
[1641790103393,68.6383,142.78,142.73,6.894]
[1641790103595,68.6383,142.78,142.74,1.75]
[1641790103794,4.0,142.76,142.74,1.75]
[1641790104093,27.66479,142.76,142.74,1.75]
[1641790104894,4.0,142.79,142.74,8.74937006]
[1641790105096,4.0,142.78,142.74,8.74937006]
[1641790105295,4.0,142.81,142.74,8.74937006]
[1641790105496,4.0,142.77,142.74,8.74937006]
[1641790105695,4.0,142.77,142.75,40.3735472]
[1641790105895,4.0,142.77,142.76,1.75]
[1641790106097,4.0,142.77,142.76,10.9397332]
[1641790107598,27.66479,142.81,142.76,10.9397332]
[1641790107998,27.66479,142.81,142.77,0.7937332]
[1641790108399,4.0,142.78,142.77,0.7937332]
[1641790110104,4.0,142.78,142.75,0.7937332]
[1641790110302,31.66479,142.78,142.75,0.7937332]
[1641790111503,4.0,142.76,142.75,0.7937332]
[1641790111704,31.66479,142.78,142.75,0.7937332]
[1641790111904,31.66479,142.78,142.76,1.75]
[1641790112104,31.66479,142.78,142.76,9.669]
[1641790112305,27.66479,142.78,142.76,9.669]
[1641790112505,31.66479,142.78,142.76,9.669]
[1641790112805,27.66479,142.78,142.77,0.7937332]
[1641790113910,4.0,142.79,142.77,8.14692799]
[1641790114109,67.8335,142.82,142.77,8.14692799]
[1641790114308,67.8335,142.82,142.78,0.7937332]
[1641790114509,67.8335,142.82,142.79,1.75]
[1641790114711,67.8335,142.82,142.79,10.699]
[1641790114909,4.0,142.8,142.79,10.699]
[1641790115310,4.0,142.8,142.79,8.949]
[1641790115510,7.96777473,142.8,142.79,8.949]
[1641790115711,7.96777473,142.8,142.77,45.18300879]
[1641790116110,7.96777473,142.8,142.77,5.60319479]
[1641790116513,4.0,142.8,142.77,5.60319479]
[1641790116711,4.0,142.8,142.77,12.60109542]
[1641790116911,4.0,142.8,142.78,1.75]
[1641790117511,67.8335,142.82,142.78,1.75]
[1641790117811,67.8335,142.82,142.78,41.329814]
[1641790118511,67.8335,142.82,142.78,1.75]
[1641790118712,4.0,142.79,142.78,1.75]
[1641790122920,71.8335,142.82,142.78,1.75]
[1641790123118,4.0,142.8,142.78,1.75]
[1641790123919,67.8335,142.82,142.78,1.75]
[1641790126321,4.0,142.79,142.78,1.75]
[1641790127323,12.519,142.79,142.77,46.93300879]
[1641790128224,4.0,142.78,142.76,9.82759508]
[1641790128423,4.0,142.77,142.76,9.82759508]
[1641790129323,4.0,142.77,142.74,6.72520433]
[1641790130024,71.8335,142.82,142.74,6.72520433]
[1641790130226,71.8335,142.82,142.75,0.7937573]
[1641790130424,71.8335,142.82,142.75,2.5437573]
[1641790130625,4.0,142.76,142.75,2.5437573]
[1641790131024,27.66479,142.81,142.75,2.5437573]
[1641790131426,27.66479,142.81,142.75,1.75]
[1641790131427,4.0,142.76,142.75,1.75]
[1641790131625,3.96826504,142.8,142.75,41.329814]
[1641790131825,4.0,142.79,142.75,41.329814]
[1641790132025,67.8335,142.82,142.75,41.329814]
[1641790132627,3.9681747,142.81,142.75,41.329814]
[1641790133028,3.9681747,142.81,142.76,39.579814]
[1641790133229,3.9681747,142.81,142.78,5.60292236]
[1641790133427,4.0,142.83,142.79,1.75]
[1641790133629,4.0,142.83,142.81,5.60177127]
[1641790133829,4.0,142.83,142.82,1.75]
[1641790134029,2.44,142.83,142.82,7.491]
[1641790134431,4.0,142.88,142.82,7.491]
[1641790134631,2.44,142.83,142.82,7.491]
[1641790136035,2.44,142.83,142.82,17.31859508]
[1641790136233,4.0,142.89,142.82,17.31859508]
[1641790136533,3.96681591,142.88,142.82,17.31859508]
[1641790136934,3.96681591,142.88,142.82,22.92001047]
[1641790139235,3.96681591,142.88,142.83,2.45387943]
[1641790139437,3.96681591,142.88,142.84,1.75]
[1641790139936,3.96681591,142.88,142.85,2.45387943]
[1641790140338,6.44,142.86,142.85,2.45387943]
[1641790140536,6.44,142.86,142.82,9.82759508]
[1641790140836,2.44,142.83,142.82,9.82759508]
[1641790141438,6.40681591,142.83,142.8,9.82759508]
[1641790141737,6.40681591,142.83,142.8,11.57759508]
[1641790141937,2.44,142.83,142.8,11.57759508]
[1641790142738,2.44,142.83,142.8,17.17967879]
[1641790142938,27.66479,142.85,142.81,6.99594235]
[1641790143136,27.66479,142.85,142.82,1.75]
[1641790143337,6.44,142.83,142.81,6.139]
[1641790143539,6.44,142.83,142.81,45.718814]
[1641790144339,6.44,142.83,142.81,6.139]
[1641790144539,6.44,142.83,142.8,9.82759508]
[1641790144839,55.32958,142.85,142.8,9.82759508]
[1641790145039,2.44,142.81,142.8,9.82759508]
[1641790145240,69.8069,142.84,142.8,9.82759508]
[1641790145443,2.44,142.82,142.8,9.82759508]
[1641790145641,69.8069,142.84,142.8,9.82759508]
[1641790145841,69.8069,142.84,142.81,1.75]
[1641790145842,2.44,142.82,142.81,1.75]
[1641790146841,2.44,142.82,142.81,2.54348366]
[1641790147041,6.44,142.82,142.81,15.61071354]
[1641790147242,10.40793729,142.82,142.8,5.43710862]
[1641790147443,31.66479,142.81,142.8,5.43710862]
[1641790147841,27.66479,142.81,142.8,5.43710862]
[1641790148044,27.66479,142.81,142.78,39.579814]
[1641790148243,27.66479,142.81,142.76,1.75]
[1641790148443,2.44,142.78,142.76,1.75]
[1641790148643,27.66479,142.81,142.77,0.79363308]
[1641790148944,2.44,142.78,142.77,0.79363308]
[1641790149843,138.5356,142.84,142.77,2.54363308]
[1641790150042,2.44,142.79,142.78,1.75]
[1641790150243,2.44,142.81,142.78,1.75]
[1641790150443,2.44,142.81,142.78,2.54363308]
[1641790150947,2.44,142.81,142.79,0.79363308]
[1641790151145,69.8069,142.84,142.79,6.39618895]
[1641790151349,69.8069,142.84,142.8,1.75]
[1641790151546,2.44,142.81,142.79,2.54363308]
[1641790151747,2.44,142.81,142.79,1.75]
[1641790153148,69.8069,142.84,142.79,1.75]
[1641790153548,2.44,142.8,142.79,1.75]
[1641790155348,69.8069,142.84,142.79,1.75]
[1641790155548,2.44,142.8,142.79,1.75]
[1641790156150,3.96750402,142.83,142.79,1.75]
[1641790156348,69.8069,142.84,142.79,9.261]
[1641790156849,69.8069,142.84,142.79,14.86337841]
[1641790157049,2.44,142.81,142.79,14.86337841]
[1641790158249,69.8069,142.84,142.79,14.86337841]
[1641790158852,2.44,142.82,142.79,14.86337841]
[1641790159051,69.8069,142.84,142.79,14.86337841]
[1641790159250,2.44,142.83,142.79,14.86337841]
[1641790159451,2.44,142.8,142.79,14.86337841]
[1641790159852,2.44,142.8,142.79,48.840814]
[1641790161353,2.44,142.8,142.79,9.261]
[1641790163055,2.44,142.8,142.79,7.511]
[1641790163356,2.44,142.8,142.78,46.93266497]
[1641790165761,2.44,142.8,142.78,52.5353156]
[1641790166462,2.44,142.8,142.79,39.579814]
[1641790166661,2.44,142.8,142.79,46.035814]
[1641790166861,2.44,142.82,142.79,46.035814]
[1641790167061,2.44,142.82,142.79,46.8292047]
[1641790167261,2.44,142.82,142.79,7.2493907]
[1641790167462,2.44,142.82,142.8,0.7933907]
[1641790167963,2.44,142.81,142.8,0.7933907]
[1641790168162,2.44,142.81,142.8,40.37731826]
[1641790168663,2.44,142.81,142.78,5.60265063]
[1641790168866,4.0,142.83,142.77,24.61860805]
[1641790169067,2.44,142.78,142.77,9.85118749]
[1641790169265,2.44,142.78,142.76,27.66479]
[1641790169464,10.761,142.81,142.76,27.66479]
[1641790169867,10.761,142.81,142.76,42.45909286]
[1641790170068,3.96827004,142.8,142.77,0.79365401]
[1641790170268,2.44,142.78,142.77,0.79365401]
[1641790171371,2.44,142.78,142.76,0.79365401]
[1641790173269,27.66479,142.79,142.76,0.79365401]
[1641790173470,6.44,142.77,142.74,14.79430286]
[1641790173670,2.44,142.75,142.74,14.79430286]
[1641790173870,14.765,142.75,142.72,59.47768581]
[1641790174073,2.44,142.73,142.72,41.02568581]
[1641790174271,2.44,142.73,142.71,14.79278276]
[1641790174472,2.44,142.72,142.71,14.79278276]
[1641790175073,2.44,142.72,142.71,15.58672466]
[1641790175473,2.44,142.72,142.71,0.7939419]
[1641790176272,2.44,142.72,142.68,0.7939419]
[1641790176473,68.8674,142.78,142.69,1.75]
[1641790176674,68.8674,142.78,142.69,10.467]
[1641790176874,2.44,142.72,142.69,10.467]
[1641790177175,2.44,142.74,142.71,5.60571951]
[1641790177377,3.96897822,142.77,142.72,1.75]
[1641790177674,64.8674,142.78,142.73,5.60490831]
[1641790177873,64.8674,142.78,142.74,1.75]
[1641790178073,64.8674,142.78,142.74,2.5439419]
[1641790178374,2.44,142.77,142.75,0.7939419]
[1641790178574,2.44,142.77,142.76,1.75]
[1641790178773,68.2401,142.83,142.76,1.75]
[1641790178974,68.2401,142.83,142.76,2.5439419]
[1641790179177,2.44,142.82,142.8,6.99643182]
[1641790179474,68.1059,142.91,142.81,6.99545296]
[1641790179676,2.44,142.87,142.83,1.56]
[1641790179881,2.44,142.88,142.84,8.74422976]
[1641790180075,12.38210777,142.9,142.84,18.34456994]
[1641790180276,12.38210777,142.9,142.85,4.7939419]
[1641790180479,12.38210777,142.9,142.87,5.5992636]
[1641790180678,63.8362,142.95,142.89,6.99202909]
[1641790180879,4.0,142.98,142.91,6.99105145]
[1641790181076,3.9647948,142.94,142.92,1.748]
[1641790181477,3.9647948,142.97,142.93,0.7939419]
[1641790181679,3.9647948,142.97,142.94,1.748]
[1641790181877,3.9647948,142.97,142.94,9.349]
[1641790182676,3.9647948,142.97,142.95,0.7939419]
[1641790182878,3.9647948,142.97,142.95,3.23518568]
[1641790183681,3.9647948,142.97,142.96,0.7939419]
[1641790183879,3.9647948,142.97,142.96,7.78181794]
[1641790184082,68.9569,143.01,142.96,9.52981794]
[1641790184282,133.3286,143.05,142.96,9.52981794]
[1641790184481,3.96281228,143.0,142.97,0.7939419]
[1641790185082,3.96281228,143.04,142.97,0.7939419]
[1641790185282,3.96281228,143.04,142.98,1.748]
[1641790185483,3.96281228,143.04,142.98,11.05680936]
[1641790185882,3.96281228,143.04,142.99,0.7939419]
[1641790186184,4.0,143.0,142.99,0.7939419]
[1641790186384,4.0,143.03,142.99,0.7939419]
[1641790186583,3.96281228,143.04,142.99,0.7939419]
[1641790186785,3.96281228,143.02,142.98,0.7939419]
[1641790187184,3.96281228,143.04,142.99,27.66479]
[1641790187685,3.96281228,143.04,143.0,0.7939419]
[1641790187884,3.96281228,143.04,143.01,6.98616739]
[1641790188085,31.66479,143.08,143.02,1.747]
[1641790188284,27.66479,143.08,143.02,1.747]
[1641790188484,31.66479,143.08,143.03,0.7939419]
[1641790188685,3.96139,143.07,143.03,0.7939419]
[1641790189486,3.96139,143.07,143.02,0.7939419]
[1641790189684,3.96139,143.07,143.02,2.5409419]
[1641790190285,3.96139,143.07,143.03,0.7939419]
[1641790191385,3.96139,143.07,143.02,0.7939419]
[1641790191585,3.96139,143.07,143.04,24.0]
[1641790191985,3.96139,143.07,143.05,1.747]
[1641790192186,3.96139,143.07,143.05,2.5409419]
[1641790192685,3.96139,143.09,143.06,0.7939419]
[1641790194187,7.96139,143.09,143.06,0.7939419]
[1641790194387,3.96139,143.09,143.06,0.7939419]
[1641790194587,3.96139,143.08,143.03,0.7939419]
[1641790194789,3.96139,143.08,143.04,32.7317035]
[1641790194987,3.96139,143.09,143.04,41.0827035]
[1641790195388,3.96139,143.09,143.05,0.7939419]
[1641790195588,3.96139,143.09,143.06,1.747]
[1641790195988,3.96139,143.09,143.07,0.7939419]
[1641790196588,3.96139,143.09,143.07,8.9579419]
[1641790196889,3.96139,143.09,143.07,8.164]
[1641790197087,3.96139,143.09,143.07,9.911]
[1641790197290,3.96139,143.09,143.07,8.164]
[1641790198389,3.96139,143.09,143.06,5.59177569]
[1641790198590,3.96139,143.09,143.05,1.747]
[1641790198591,7.96139,143.09,143.05,1.747]
[1641790198793,3.96139,143.09,143.05,1.747]
[1641790199291,3.96139,143.09,143.06,0.79216526]
[1641790199893,3.96139,143.09,143.05,1.747]
[1641790200794,3.96139,143.09,143.06,0.79216719]
[1641790201196,3.96139,143.09,143.05,1.747]
[1641790202599,3.96139,143.09,143.04,14.32433449]
[1641790202994,3.96139,143.09,143.05,0.79216257]
[1641790203196,3.96139,143.09,143.06,1.747]
[1641790204294,3.96139,143.09,143.05,1.747]
[1641790204794,3.96139,143.09,143.06,0.79211692]
[1641790205197,3.96139,143.09,143.07,5.59141137]
[1641790205396,3.96139,143.09,143.08,29.41179]
[1641790205596,65.4585,143.14,143.09,1.62927338]
[1641790205795,3.95994677,143.13,143.1,1.746]
[1641790205995,3.95994677,143.13,143.1,5.966]
[1641790206397,23.75827909,143.16,143.1,5.966]
[1641790206596,23.75827909,143.16,143.11,1.746]
[1641790206998,4.0,143.14,143.07,8.7289964]
[1641790207198,4.0,143.13,143.07,6.9829964]
[1641790207399,31.66479,143.12,143.07,6.9829964]
[1641790207600,55.38277807,143.12,143.07,6.9829964]
[1641790207798,4.0,143.11,143.07,6.9829964]
[1641790208199,7.95970898,143.11,143.07,6.9829964]
[1641790208399,3.95970898,143.11,143.07,6.9829964]
[1641790208601,3.95970898,143.1,143.07,6.9829964]
[1641790209000,4.0,143.08,143.04,6.9847035]
[1641790209201,7.454,143.08,143.04,6.9847035]
[1641790209402,35.11879,143.08,143.04,6.9847035]
[1641790209602,3.95970898,143.07,143.04,6.9847035]
[1641790209803,3.95970898,143.07,143.02,1.747]
[1641790210003,7.95970898,143.07,143.01,1.747]
[1641790210406,14.69970898,143.07,143.03,2.43233766]
[1641790210603,3.95970898,143.06,143.03,2.43233766]
[1641790210804,4.0,143.05,143.03,2.43233766]
[1641790211204,4.0,143.04,143.03,3.766e-05]
[1641790211407,31.66479,143.04,143.03,3.766e-05]
[1641790211606,35.62449898,143.04,143.03,3.766e-05]
[1641790211805,41.42949898,143.04,143.0,14.76277235]
[1641790212005,4.0,143.01,143.0,15.55522024]
[1641790212305,12.837,143.01,142.97,2.70121124]
[1641790212506,12.837,143.01,142.92,6.99056274]
[1641790212708,4.0,143.0,142.92,6.99056274]
[1641790212917,4.0,142.98,142.91,1.748]
[1641790213107,12.477,142.98,142.91,1.748]
[1641790213508,27.66479,142.95,142.92,0.79269279]
[1641790214408,3.96346395,142.94,142.92,0.79269279]
[1641790215409,27.66479,142.95,142.92,0.79269279]
[1641790216009,3.96336007,142.94,142.92,0.79269279]
[1641790217714,3.96336007,142.94,142.9,1.749]
[1641790217715,3.96336007,142.94,142.91,0.79269279]
[1641790217913,3.96336007,142.94,142.93,6.98934125]
[1641790218114,27.66479,142.95,142.93,15.80734125]
[1641790218315,27.66479,142.95,142.94,1.748]
[1641790218613,27.66479,142.95,142.94,2.54069279]
[1641790218813,27.66479,142.95,142.94,0.79269279]
[1641790219013,31.66479,142.95,142.9,1.748]
[1641790219214,38.12080019,142.95,142.88,8.74127354]
[1641790219413,38.12080019,142.95,142.88,6.99227354]
[1641790219616,34.15679,142.95,142.88,6.99227354]
[1641790219815,4.0,142.94,142.88,6.99227354]
[1641790220515,3.96455835,142.93,142.89,0.79291167]
[1641790221217,7.96455835,142.93,142.89,0.79291167]
[1641790221620,31.66479,142.9,142.84,1.749]
[1641790221917,4.0,142.87,142.83,1.749]
[1641790222117,9.331,142.87,142.8,1.75]
[1641790222317,13.331,142.87,142.8,1.75]
[1641790223118,9.331,142.87,142.8,1.75]
[1641790223318,3.96595646,142.86,142.81,0.79319129]
[1641790223718,27.66479,142.85,142.81,0.79319129]
[1641790224319,4.0,142.83,142.81,0.79319129]
[1641790224521,8.885,142.83,142.81,0.79319129]
[1641790224721,12.885,142.83,142.79,27.66479]
[1641790224921,3.96670041,142.82,142.79,27.66479]
[1641790225322,31.66479,142.85,142.79,27.66479]
[1641790225524,4.0,142.84,142.79,27.66479]
[1641790225722,3.96649698,142.84,142.8,24.0]
[1641790225922,3.96649698,142.84,142.8,20.0]
[1641790226122,3.96649698,142.84,142.81,1.75]
[1641790226323,4.0,142.89,142.81,9.001]
[1641790226723,7.96570935,142.88,142.81,9.001]
[1641790227124,3.96570935,142.88,142.81,9.001]
[1641790227324,3.96570935,142.87,142.8,1.75]
[1641790227525,7.96570935,142.87,142.8,1.75]
[1641790227723,31.66479,142.86,142.8,1.75]
[1641790227924,31.66479,142.86,142.78,29.41479]
[1641790228130,27.66479,142.86,142.78,27.66479]
[1641790228326,27.66479,142.86,142.79,1.75]
[1641790228327,3.96570935,142.85,142.79,1.75]
[1641790228526,3.96570935,142.85,142.79,9.506]
[1641790229327,3.96570935,142.85,142.79,33.506]
[1641790229527,3.96570935,142.85,142.81,6.99594235]
[1641790230227,27.66479,142.86,142.81,6.99594235]
[1641790230731,27.66479,142.86,142.81,10.99594235]
[1641790230928,27.66479,142.86,142.83,12.59574225]
[1641790231129,27.66479,142.86,142.84,1.75]
[1641790232330,68.948,142.92,142.84,25.75]
[1641790232531,68.948,142.92,142.84,31.35064917]
[1641790232730,67.9496,142.94,142.85,5.59990607]
[1641790232731,4.0,142.94,142.85,5.59990607]
[1641790232933,3.96431937,142.91,142.88,6.99227354]
[1641790233232,3.96431937,142.91,142.89,1.749]
[1641790233430,4.0,142.95,142.89,1.749]
[1641790233631,31.66479,142.95,142.88,12.89527354]
[1641790233831,3.96431937,142.94,142.88,12.89527354]
[1641790234834,4.0,142.93,142.88,12.89527354]
[1641790235035,7.96431937,142.94,142.88,6.99227354]
[1641790235234,3.96431937,142.92,142.88,6.99227354]
[1641790235635,27.66479,142.92,142.86,1.749]
[1641790235836,31.66479,142.92,142.86,1.749]
[1641790236035,27.66479,142.92,142.86,1.749]
[1641790236235,3.96431937,142.91,142.86,1.749]
[1641790236637,27.66479,142.92,142.86,1.749]
[1641790236836,27.66479,142.92,142.86,9.61]
[1641790237036,73.7584,142.98,142.87,5.5991772]
[1641790237237,4.0,142.97,142.89,6.99202909]
[1641790237438,4.0,142.96,142.9,1.749]
[1641790237639,7.96340757,142.96,142.9,1.749]
[1641790237839,7.96340757,142.96,142.89,16.32502909]
[1641790238039,4.0,142.95,142.89,9.333]
[1641790238240,3.96340757,142.95,142.89,9.333]
[1641790239140,3.96340757,142.95,142.89,16.32502909]
[1641790239640,3.96340757,142.96,142.91,34.65559709]
[1641790239940,3.96340757,142.96,142.95,6.98909701]
[1641790240142,3.96340757,143.0,142.95,16.07209701]
[1641790240542,3.96340757,143.0,142.96,0.79254484]
[1641790241044,3.96340757,143.01,142.96,0.79254484]
[1641790241642,27.66479,142.98,142.96,0.79254484]
[1641790242042,27.66479,142.98,142.96,4.484e-05]
[1641790242243,31.66479,142.98,142.96,4.484e-05]
[1641790242444,3.96340757,142.97,142.94,14.74177295]
[1641790242844,3.96340757,142.97,142.94,14.74172811]
[1641790243046,3.96340757,142.97,142.91,27.66479]
[1641790243047,3.96340757,142.97,142.91,52.12995837]
[1641790243245,3.96340757,142.97,142.95,0.7927138]
[1641790243848,3.96340757,142.97,142.92,0.7927138]
[1641790244245,7.96340757,142.98,142.92,0.7927138]
[1641790244447,7.96340757,142.98,142.93,14.74172811]
[1641790244646,3.96340757,142.97,142.93,14.74172811]
[1641790244846,7.96340757,142.97,142.93,14.74172811]
[1641790245047,7.96340757,142.97,142.94,0.7927138]
[1641790245447,3.96340757,142.96,142.94,0.7927138]
[1641790245946,3.96340757,142.97,142.93,0.7927138]
[1641790246149,3.96340757,142.97,142.93,8.5137138]
[1641790246947,3.96340757,142.97,142.94,0.7927138]
[1641790247749,3.96340757,142.97,142.92,0.7927138]
[1641790250353,3.96340757,142.97,142.92,7.78303221]
[1641790250655,3.96340757,142.97,142.93,1.748]
[1641790250852,3.96340757,142.97,142.93,8.14]
[1641790251052,3.96340757,142.98,142.93,8.9327138]
[1641790251254,7.96340757,142.98,142.93,8.9327138]
[1641790251455,7.96340757,142.98,142.94,3.22488784]
[1641790251653,3.96340757,142.98,142.94,3.22488784]
[1641790251852,3.96340757,142.97,142.95,0.7927138]
[1641790252254,3.96340757,142.98,142.95,3.22488784]
[1641790252754,3.96340757,142.98,142.96,0.7927138]
[1641790253154,7.96340757,142.98,142.96,0.7927138]
[1641790253355,3.96340757,142.98,142.96,0.7927138]
[1641790253955,3.96340757,142.98,142.96,3.22488784]
[1641790254355,7.96340757,142.98,142.96,3.22488784]
[1641790254755,7.96340757,142.98,142.96,0.7927138]
[1641790255255,4.0,142.98,142.97,0.7927138]
[1641790255464,4.0,142.98,142.92,14.74172811]
[1641790255655,4.0,142.96,142.92,14.74172811]
[1641790255855,27.66479,142.95,142.92,14.74172811]
[1641790256055,27.66479,142.95,142.91,17.17755582]
[1641790257156,31.66479,142.99,142.92,0.79275681]
[1641790257356,31.66479,142.99,142.92,7.94475681]
[1641790257557,27.66479,142.99,142.92,7.94475681]
[1641790257757,27.66479,142.99,142.93,2.43582771]
[1641790258157,31.66479,142.99,142.93,3.22858452]
[1641790258457,31.66479,142.99,142.94,15.53448492]
[1641790258858,31.66479,142.99,142.95,0.79275681]
[1641790259058,31.66479,142.99,142.95,7.64375681]
[1641790259258,4.0,142.98,142.95,10.07958452]
[1641790259558,4.0,142.98,142.96,0.79275681]
[1641790260058,4.0,142.98,142.97,2.43582771]
[1641790260257,4.0,142.98,142.97,3.22858452]
[1641790260460,31.66479,142.99,142.97,3.22858452]
[1641790260659,4.0,142.98,142.97,11.11058452]
[1641790260861,4.0,142.98,142.97,10.31782771]
[1641790261460,4.0,142.98,142.95,14.74172811]
[1641790261664,4.0,142.97,142.95,14.74172811]
[1641790262861,27.66479,142.99,142.95,14.74172811]
[1641790263662,27.66479,142.99,142.97,14.74172811]
[1641790263865,27.66479,142.99,142.97,20.57872811]
[1641790266167,27.66479,143.02,142.98,14.74172811]
[1641790267167,31.66479,143.02,142.98,14.74172811]
[1641790267470,31.66479,143.02,142.99,14.74172811]
[1641790268269,31.66479,143.02,142.98,14.74172811]
[1641790268667,4.0,142.99,142.98,14.74172811]
[1641790268869,10.669,142.99,142.98,14.74172811]
[1641790269172,6.669,142.99,142.98,14.74172811]
[1641790269570,10.669,142.99,142.98,14.74172811]
[1641790269772,10.669,142.99,142.96,14.74172811]
[1641790269974,38.33379,142.99,142.96,14.74172811]
[1641790270171,34.33379,142.99,142.96,14.74172811]
[1641790270372,3.96314266,142.98,142.96,14.74172811]
[1641790270974,7.96314266,142.98,142.96,14.74172811]
[1641790271872,3.96314266,142.97,142.96,14.74172811]
[1641790272672,3.96314266,142.97,142.96,2.811e-05]
[1641790272673,7.96314266,142.97,142.96,2.811e-05]
[1641790272873,15.54414266,142.97,142.92,39.05091089]
[1641790273073,4.0,142.95,142.92,39.05091089]
[1641790273272,4.0,142.94,142.92,39.05091089]
[1641790273473,4.0,142.94,142.91,39.05091089]
[1641790273674,4.0,142.95,142.91,39.05091089]
[1641790273875,27.66479,142.94,142.91,39.05091089]
[1641790274076,31.62878657,142.94,142.91,39.05091089]
[1641790274477,3.96399657,142.93,142.91,39.05091089]
[1641790274678,3.96399657,142.93,142.9,39.05091089]
[1641790275677,3.96399657,142.93,142.88,39.05091089]
[1641790275877,3.96399657,142.93,142.91,0.79285979]
[1641790276276,3.96399657,142.93,142.89,0.79285979]
[1641790277981,27.66479,142.91,142.89,0.79285979]
[1641790278182,27.66479,142.91,142.88,0.79285979]
[1641790278982,27.66479,142.91,142.86,0.79285979]
[1641790280185,34.48779,142.91,142.86,0.79285979]
[1641790280386,38.48779,142.91,142.86,0.79285979]
[1641790280786,4.0,142.88,142.86,0.79285979]
[1641790280985,9.655,142.88,142.86,5.979e-05]
[1641790281185,4.0,142.87,142.86,5.979e-05]
[1641790281387,4.0,142.87,142.84,39.05091089]
[1641790281985,27.66479,142.85,142.84,39.05091089]
[1641790282585,27.66479,142.85,142.8,39.05091089]
[1641790282786,27.66479,142.85,142.84,0.79322285]
[1641790283186,27.66479,142.85,142.81,0.79322285]
[1641790284386,27.66479,142.85,142.79,0.79322285]
[1641790284988,4.0,142.84,142.79,0.79322285]
[1641790285188,4.0,142.84,142.79,39.84413374]
[1641790285389,4.0,142.83,142.79,39.84413374]
[1641790285992,4.0,142.83,142.8,0.79322285]
[1641790286192,27.66479,142.81,142.8,0.79322285]
[1641790286391,27.66479,142.81,142.76,48.81386538]
[1641790286392,27.66479,142.81,142.77,0.79322285]
[1641790288896,27.66479,142.81,142.77,6.99765579]
[1641790289094,27.66479,142.81,142.78,1.75]
[1641790289497,27.66479,142.81,142.79,0.79322285]
[1641790291297,27.66479,142.81,142.78,0.79322285]
[1641790291696,27.66479,142.81,142.77,2.54322285]
[1641790292098,27.66479,142.81,142.78,0.79322285]
[1641790293900,27.66479,142.81,142.78,39.84413374]
[1641790294300,27.66479,142.81,142.79,0.79322285]
[1641790295002,27.66479,142.85,142.79,18.46772482]